{"text_format":"1","workbook":"xlsx","n_sheets":1,"sheets":["Arkusz1"],"not_rendered":{"charts":0,"images":0,"macros":0,"external_links":0,"defined_names":0,"comments":0,"pivot_tables":0},"unopened":[],"bounds":{"document_bytes":16777216,"sheet_cells":100000,"rows_first":2000,"rows_last":500,"rows_between":2000,"halvings":0,"cell_chars":16384,"cell_head_chars":4096},"cells_cut":0,"cells_raw":0,"read":"whole","date_system":"1900"}

{"sheet":"Arkusz1","index":0,"n_rows":82,"n_cols":9,"rows_kept":82,"cut":false,"hidden":false,"merged":[[0,1,0,6],[40,1,40,6],[3,7,3,8],[76,1,76,3],[76,5,76,8],[81,5,81,8],[78,1,78,3],[78,5,78,8],[77,1,77,3],[77,5,77,8]]}
[null,"Rachunek zysków i strat za 2014"]
[null,"FUNDACJI EDF POLSKA"]
[null,"(wariant porównawczy)",null,null,null,null,null,"REGON 278238536"]
[null,null,"Wyszczególnienie",null,null,null,null,"KWOTY  za rok"]
[null,null,null,null,null,null,null,"poprzedni ","obrotowy "]
[null,"A. Przychody  dział. pożytku publiczn. oraz darowizna od funtatora ",null,null,null,null,null,5440680.3099999996,4616587.43]
[null,"B.  Koszty  realizacji  zadań  pożytku publicznego",null,null,null,null,null,{"$f":"H8+H20","v":5763172.1099999994},{"$f":"I8+I20","v":5213456.540000001}]
[null,"a/ działalność nieodpłatna",null,null,null,null,null,{"$f":"H9+H10+H11+H12+H13+H14+H15+H16+H17+H18","v":1368205.44},{"$f":"I9+I10+I11+I12+I13+I14+I15+I16+I17+I18","v":1198086.6200000001}]
[null,"1) amortyzacja",null,null,null,null,null,12394.49,12451.05]
[null,"2) zużycie  materiałów",null,null,null,null,null,39060.089999999997,39219.910000000003]
[null,"3) zużycie energii",null,null,null,null,null,18988.64,17176.5]
[null,"4) usługi  obce",null,null,null,null,null,228020.16,186422.19]
[null,"5) podatki i opłaty",null,null,null,null,null,468073.23,16847.54]
[null,"6) wynagrodzenia",null,null,null,null,null,467864.28,439443.89]
[null,"7) ubezpieczenia społeczne i inne świadczenia",null,null,null,null,null,86786.39,81605]
[null,"8) podróże służbowe",null,null,null,null,null,13716.24,11651.21]
[null,"9) koszty reprezentacji i reklamy",null,null,null,null,null,9511.68,8545.98]
[null,"10)pozostałe koszty",null,null,null,null,null,23790.240000000002,384723.35]
[]
[null,"b/ działalność odpłatna",null,null,null,null,null,{"$f":"H21+H22+H23+H24+H25+H26+H27+H28+H29+H30","v":4394966.67},{"$f":"I21+I22+I23+I24+I25+I26+I27+I28+I29+I30","v":4015369.9200000004}]
[null,"1)amortyzacja",null,null,null,null,null,204345.08,183523.12]
[null,"2)zużycie materiałów",null,null,null,null,null,318551.59000000003,219119.39]
[null,"3)zużycie energii",null,null,null,null,null,437111.45,414701.34]
[null,"4)usługi obce",null,null,null,null,null,806104.25,879533.92]
[null,"5)podatki i opłaty",null,null,null,null,null,132184.79999999999,123482.85]
[null,"6)wynagrodzenia",null,null,null,null,null,1857338.02,1648876.7]
[null,"7)ubezpieczenia społeczne i inne świadczenia",null,null,null,null,null,494856.14,429784.96]
[null,"8)podróże służbowe",null,null,null,null,null,23863.85,29471.15]
[null,"9)koszty reprezentacji i reklamy ",null,null,null,null,null,34001.910000000003,24961.56]
[null,"10)pozostałe koszty",null,null,null,null,null,86609.58,61914.93]
[null,"C .Przychody z podziału zysku ",null,null,null,null,null,null,63416.65]
[null,"za rok ubiegły"]
[null,"D. Koszty z podziału wyniku finansowego",null,null,null,null,null,793514.27,398237.1]
[null,"za rok ubiegły"]
[null,"E. Wynik  finansowy działalności pożytku publicznego"]
[null,"       dodatni  lub  ujemny (A-B+C-D)",null,null,null,null,null,{"$f":"H6-H7+H31-H33","v":-1116006.0699999998},{"$f":"I6-I7+I31-I33","v":-931689.56000000122}]
[null,"F. Przychody netto ze sprzedaży produktów, "]
[null,"      usług, towarów i materiałów",null,null,null,null,null,1029025.67,959597.18]
[null,"     ( działalność gospodarcza)"]
[null,"G.Koszty  sprzedaży  produktów,usług,towarów,",null,null,null,null,null,{"$f":"H43+H44+H45+H46+H47+H48+H49+H50+H51+H52","v":411635.73},{"$f":"I43+I44+I45+I46+I47+I48+I49+I50+I51+I52","v":332924.83999999997}]
[null,"     materiałów (dział.gospodarcza)"]
[null,"z tego:"]
[null,"1) amortyzacja",null,null,null,null,null,48509.57,39125.54]
[null,"2) zużycie materiałów",null,null,null,null,null,32202.61,13171.2]
[null,"3) zużycie energii",null,null,null,null,null,21874.13,17513.009999999998]
[null,"4) usługi obce",null,null,null,null,null,31581.37,27925.89]
[null,"5) podatki i opłaty",null,null,null,null,null,13372.16,10918.31]
[null,"6) wynagrodzenia",null,null,null,null,null,218963.25,183562.47]
[null,"7) ubezpieczenia społeczne i inne świadczenia",null,null,null,null,null,42811.01,39025.370000000003]
[null,"8) podróże służbowe",null,null,null,null,null,650.54,257.72000000000003]
[null,"9) koszty reprezentacji i reklamy",null,null,null,null,null,1671.09,981.45]
[null,"10)pozostałe koszty",null,null,null,null,null,0,443.88]
[null,"H. Zysk (strata) brutto na sprzedaży  (F-G)",null,null,null,null,null,{"$f":"H38-H40","v":617389.94000000006},{"$f":"I38-I40","v":626672.34000000008}]
[null,"     (działalność gospodarcza)"]
[null,"I. Zysk (strata) na działalności statutowej,",null,null,null,null,null,{"$f":"H36+H53","v":-498616.12999999977},{"$f":"I36+I53","v":-305017.22000000114}]
[null,"       pożytku  publicznego i gospodarczej"]
[null,"J.Pozostałe przychody operacyjne",null,null,null,null,null,147772.26999999999,295707.21000000002]
[null,"K. Pozostałe koszty operacyjne i inne",null,null,null,null,null,58822.62,204742.66]
[null,"L. Zysk (strata) na działalności operacyjnej",null,null,null,null,null,{"$f":"H57-H58","v":88949.65},{"$f":"I57-I58","v":90964.550000000017}]
[null,"Ł. Przychody finansowe",null,null,null,null,null,26052.92,30483.61]
[null,"M. Koszty finansowe",null,null,null,null,null,1003.54,46.37]
[]
[null,"N. Zysk ( strata) z działalności  pożytku",null,null,null,null,null,{"$f":"H55+H59+H60-H61","v":-384617.09999999974},{"$f":"I55+I59+I60-I61","v":-183615.4300000011}]
[null,"     publicznego i gospodarczej"]
[null,"O. Wynik  zdarzeń nadzwyczajnych",null,null,null,null,null,{"$f":"H67-H69","v":0},{"$f":"I67-I69","v":0}]
[null,"       w  tym  działalności statutowej"]
[null,"I. Zyski nadzwyczajne"]
[null,"   w tym działalności statutowej"]
[null,"II. Straty nadzwyczajne"]
[null,"   w  tym  działalności statutowej"]
[null,"P. Zysk ( strata ) brutto",null,null,null,null,null,{"$f":"H63+H65","v":-384617.09999999974},{"$f":"I63+I65","v":-183615.4300000011}]
[null,"     w tym nadwyżka / niedobór działalności pożytku publicznego"]
[null,"R. Podatek  dochodowy",null,null,null,null,null,13620,10423]
[null,"S.ZYSK (STRATA) netto",null,null,null,null,null,{"$f":"H71-H73","v":-398237.09999999974},{"$f":"I71-I73","v":-194038.4300000011}]
[]
[null,"RYBNIK, DNIA 24-04-2015r"]
[null,"Główny Księgowy   ",null,null,null,"  Zatwierdził  Zarząd"]
[null,"Fundacji EDF Polska"]
[null,"ANNA MAGIERA",null,null,null,"JAN MKOWSKI"]
[null,"(podpis osoby której powierzono"]
[null,"prowadzenie ksiąg rachunkowych)"]
[null,null,null,null,null,"STANISŁAW  WÓJTOWICZ"]